[Event "ETCC Open 2023"]
[Site "Budva"]
[Date "2023.11.11"]
[Round "1.1"]
[White "Bjerre, Jonas Buhl"]
[Black "Radjabov, Teimour"]
[Result "1/2-1/2"]
[ECO "C42"]
[WhiteElo "2633"]
[BlackElo "2745"]
[Annotator "TA"]
[PlyCount "60"]
[EventDate "2023.11.10"]
[EventType "team-tourn"]
[EventCountry "MNE"]
[SourceTitle "playchess.com"]
[Source "ChessBase"]
[SourceQuality "1"]
[WhiteTeam "Denmark"]
[BlackTeam "Azerbaijan"]
[WhiteTeamCountry "DEN"]
[BlackTeamCountry "AZE"]
[TimeControl "40/5400+30:1800+30"]

{[%evp 15,60,39,25,14,12,13,20,17,31,25,25,20,29,14,15,14,27,12,22,7,24,10,6,4,7,0,10,0,0,0,0,0,0,0,0,0,0,0,0,0,0,0,0,0,0,0,0]} 1. e4 {[%emt 0:00:08]} e5 {[%emt 0:00:05]} 2. Nf3 {[%emt 0:00:08]} Nf6 {[%emt 0:00:03][%cal Bg8f6,Bf6e4,Be4d6][%mdl 32]} 3. Nxe5 {[%emt 0:01:07]} d6 {[%emt 0:00:10]} 4. Nf3 {[%emt 0:00:31]} Nxe4 {[%emt 0:00:06]} 5. d4 {[%emt 0:00:47]} d5 {[%emt 0:00:29]} 6. Bd3 {[%emt 0:00:42]} Bf5 {[%emt 0:00:28]} 7. O-O {[%emt 0:03:17]} Be7 {[%emt 0:00:39]} 8. Re1 {[%emt 0:03:02]} O-O {[%emt 0:01:02]} 9. Nbd2 {[%emt 0:02:10][%cal Rd2e4] C42: Petroff Defence: 3 Nxe5 and unusual White 3rd moves.} Nd6 $1 {[%emt 0:01:22]} 10. Nf1 {[%emt 0:01:46]} Bxd3 {[%emt 0:00:16]} 11. Qxd3 {[%emt 0:00:07]} c6 {[%emt 0:00:42]} 12. Bf4 {[%emt 0:08:01]} Na6 {[%emt 0:00:24][%cal Bb8a6,Ba6c7,Bc7e6][%mdl 32]} 13. Re2 {[%emt 0:03:46]} Nc7 {[%emt 0:01:56]} 14. Rae1 {[%emt 0:02:52]} Ne6 {[%emt 0:02:19]} 15. Bxd6 {[%emt 0:03:12]} Bxd6 {[%emt 0:00:35]} 16. g3 {[%emt 0:00:37] Dodges Nf4} Qf6 {[%emt 1:27:54]} 17. Ne5 {[%emt 0:05:39]} Rfe8 {[%emt 0:00:00]} 18. c3 {[%emt 0:07:47]} Bxe5 {[%emt 0:00:00] The position is equal.} 19. Rxe5 {[%emt 0:02:32]} Nc7 {[%emt 0:00:00]} 20. Nd2 {[%emt 0:05:03][%cal Bf1d2,Bd2f3,Bf3e5,Be5d3,Bd3c5][%mdl 32]} Rxe5 {[%emt 0:00:00]} 21. Rxe5 {[%emt 0:01:08]} Re8 {[%emt 0:00:00]} 22. Nf3 {[%emt 0:03:39]} Rxe5 {[%emt 0:00:00]} 23. Nxe5 $11 {[%emt 0:00:41][%mdl 4096] Endgame KQN-KQN} Qe6 {[%emt 0:00:00]} 24. Qf3 {[%emt 0:04:15]} Ne8 {[%emt 0:00:00] [#]} 25. Qf4 $146 {[%emt 0:08:38]} ({Predecessor:} 25. Qg4 Qxg4 26. Nxg4 f6 27. f3 Kf7 28. Nf2 Nd6 29. Nd3 Ke7 30. Kf2 g5 {½-½ Santos Latasa,J (2656)-Radjabov,T (2747) FIDE World Cup 2023 (3.2)}) 25... f6 {[%emt 0:00:00]} 26. Nd3 {[%emt 0:00:57]} Nd6 {[%emt 0:00:00]} 27. Nc5 {[%emt 0:01:35]} Qe7 {[%emt 0:00:00]} 28. Qg4 {[%emt 0:01:35]} g6 {[%emt 0:00:00]} 29. Kf1 {[%emt 0:02:51]} Kf7 {[%emt 0:00:00]} 30. Qe2 {[%emt 0:02:19]} b6 {[%emt 0:00:00] An uneventful encounter.   Weighted Error Value: White=0.03 (flawless) /Black=0.01 (flawless)} 1/2-1/2

[Event "ETCC Open 2023"]
[Site "Budva"]
[Date "2023.11.11"]
[Round "1.2"]
[White "Mamedyarov, Shakhriyar"]
[Black "Andersen, Mads"]
[Result "0-1"]
[ECO "D02"]
[WhiteElo "2734"]
[BlackElo "2612"]
[Annotator "TA"]
[PlyCount "74"]
[EventDate "2023.11.10"]
[EventType "team-tourn"]
[EventCountry "MNE"]
[SourceTitle "playchess.com"]
[Source "ChessBase"]
[SourceQuality "1"]
[WhiteTeam "Azerbaijan"]
[BlackTeam "Denmark"]
[WhiteTeamCountry "AZE"]
[BlackTeamCountry "DEN"]
[TimeControl "40/5400+30:1800+30"]

{[%evp 9,74,-1,16,-8,0,-22,-32,-32,-32,-19,-18,-13,-31,-20,-17,-13,-15,-21,-15,-34,-13,-41,0,-30,0,-25,-15,-17,-4,0,0,0,42,19,56,54,95,91,122,127,142,151,135,0,0,0,0,-143,-142,-164,-162,-118,-142,-189,-187,-335,-194,-391,-379,-478,-478,-478,-477,-912,-910,-908,-887]} 1. d4 {[%emt 0:00:04]} d5 {[%emt 0:00:13]} 2. Nf3 {[%emt 0:00:08]} Nf6 {[%emt 0:00:30]} 3. Bf4 {[%emt 0:00:06]} c5 {[%emt 0:03:45]} 4. e3 {[%emt 0:00:08]} e6 {[%emt 0:00:27]} 5. Nbd2 {[%emt 0:01:07]} Qb6 {[%emt 0:03:13]} 6. c4 {[%emt 0:03:27] D02: 1 d4 d5 2 Nf3 sidelines, including 2...Nf6 3 g3 and 2...Nf6 3 Bf4.} Nc6 {[%emt 0:08:01]} 7. Bd3 {[%emt 0:23:02]} cxd4 {[%emt 0:06:15] [#]} 8. exd4 $146 {[%emt 0:02:27] Black is slightly better.} ({Predecessor:} 8. O-O Bc5 9. Re1 dxe3 10. Bxe3 Bxe3 11. Rxe3 O-O 12. Qc2 Nb4 13. Qc3 Nxd3 14. Qxd3 {0-1 Tran,T-Luong,D (1767) VIE-chT Bac Giang 2020 (2.24)}) 8... Nxd4 {[%emt 0:04:25]} 9. O-O {[%emt 0:00:21]} Be7 {[%emt 0:06:04]} 10. cxd5 {[%emt 0:14:21]} Nxf3+ {[%emt 0:05:38]} (10... Qxb2 $2 11. Qa4+ Bd7 12. Qxd4 $18) 11. Qxf3 {[%emt 0:00:28] Strongly threatening Nc4.} exd5 {[%emt 0:01:48]} 12. Rfe1 {[%emt 0:01:50]} Be6 {[%emt 0:01:24]} 13. Nb3 {[%emt 0:04:04]} O-O {[%emt 0:06:36]} 14. Be3 {[%emt 0:00:17]} Qd6 {[%emt 0:08:44]} 15. Bf4 {[%emt 0:00:51]} Qb6 {[%emt 0:04:03]} 16. Be3 {[%emt 0:03:13]} Qd6 {[%emt 0:00:14]} 17. Bc5 {[%emt 0:07:23]} Qd8 {[%emt 0:02:52]} 18. Bd4 {[%emt 0:00:09]} b6 {[%emt 0:03:39]} 19. h3 {[%emt 0:07:17]} Rc8 {[%emt 0:08:05]} 20. Rad1 {[%emt 0:00:02]} Qd7 {[%emt 0:01:03]} 21. Bc3 {[%emt 0:02:24]} Qb7 {[%emt 0:08:15][%cal Of6e4]} 22. Nd4 {[%emt 0:01:27]} Ne4 {[%emt 0:01:20] [#]} 23. Rxe4 $1 {[%emt 0:02:19]} dxe4 {[%emt 0:01:39]} 24. Bxe4 {[%emt 0:00:04]} Qc7 {[%emt 0:04:22]} 25. Nxe6 {[%emt 0:06:17]} fxe6 {[%emt 0:00:02]} 26. Qh5 {[%emt 0:00:04]} ({White must play} 26. Qg4 $16 {[%csl Gc3][%cal Rg4g7]} Bf6 27. Qxe6+ Qf7 28. Bd5 (28. Qf5 g6 $14)) 26... g6 $11 {[%emt 0:02:02]} 27. Qg4 {[%emt 0:02:59][%cal Oe4g6] Hoping for Bxg6!} Kf7 {[%emt 0:04:54][%cal Bg8f7,Bf7g7,Bg7h8][%mdl 32]} 28. Rd3 {[%emt 0:04:35] [#]} (28. Qf3+ $11 {keeps the balance.} Ke8 29. Qg4) 28... Bf6 $1 $17 {[%emt 0:00:58][%cal Rf6c3]} 29. Bb4 {[%emt 0:05:07]} Rfd8 {[%emt 0:01:16]} 30. Rg3 {[%emt 0:00:02][%cal Re4g6] Black must now prevent Bxg6+!} Rg8 {[%emt 0:01:01]} (30... Bxb2 $2 31. Bxg6+ Kg8 32. Bxh7+ (32. Qxe6+ Kh8 $15) 32... Kh8 33. Bg6 $18) 31. Rf3 {[%emt 0:01:40]} (31. Bd2 $17) 31... Kg7 {[%emt 0:01:00] And now ...Qc1+ would win.} 32. h4 {[%emt 0:06:34]} (32. Bd3 $142) 32... Bxb2 {[%emt 0:01:00]} (32... Qc1+ $142 33. Kh2 Qxb2) 33. h5 $2 {[%emt 0:00:34]} (33. g3 {might work better.}) 33... Qe5 $19 {[%emt 0:00:33]} 34. h6+ {[%emt 0:01:35]} Kh8 $1 {[%emt 0:00:45] Black is clearly winning.} 35. Bd2 {[%emt 0:00:53] Against Rc1+} Bc1 {[%emt 0:01:08]} 36. Bb4 {[%emt 0:00:29]} (36. Qf4 $142 Qxf4 37. Bxf4 Bxf4 38. Rxf4) 36... Bxh6 {[%emt 0:00:28] ( -> ...Rc1+)} ({Stronger than} 36... Rc4 37. Be7 Bb2 38. Bf6+ Qxf6 39. Rxf6 Bxf6 40. Qxe6 Rc1+ 41. Kh2 $11) 37. g3 {[%emt 0:00:01]} Rc4 {[%emt 0:00:35][%csl LRb4,LRe4] An entertaining game by Andersen.   Weighted Error Value: White=0.51/Black=0.16 (very precise)} 0-1

[Event "ETCC Open 2023"]
[Site "Budva"]
[Date "2023.11.11"]
[Round "1.3"]
[White "Thybo, Jesper Sondergaard"]
[Black "Mamedov, Rauf"]
[Result "1/2-1/2"]
[ECO "D12"]
[WhiteElo "2522"]
[BlackElo "2644"]
[Annotator "TA"]
[PlyCount "67"]
[EventDate "2023.11.10"]
[EventType "team-tourn"]
[EventCountry "MNE"]
[SourceTitle "playchess.com"]
[Source "ChessBase"]
[SourceQuality "1"]
[WhiteTeam "Denmark"]
[BlackTeam "Azerbaijan"]
[WhiteTeamCountry "DEN"]
[BlackTeamCountry "AZE"]
[TimeControl "40/5400+30:1800+30"]

{[%evp 13,67,21,30,21,21,19,19,9,18,18,21,9,27,16,25,0,0,0,0,0,11,0,0,14,21,0,0,0,0,0,0,0,0,0,0,0,0,0,0,0,0,0,0,0,0,0,0,0,0,0,0,0,0,0,0,0]} 1. d4 {[%emt 0:00:07]} Nf6 {[%emt 0:00:09]} 2. c4 {[%emt 0:00:10]} c6 {[%emt 0:00:04]} 3. Nf3 {[%emt 0:00:21]} d5 {[%emt 0:00:05]} 4. e3 {[%emt 0:00:16]} Bf5 {[%emt 0:00:05]} 5. Nc3 {[%emt 0:00:18]} e6 {[%emt 0:00:05]} 6. Nh4 {[%emt 0:00:27]} Bg6 {[%emt 0:00:04]} 7. Nxg6 {[%emt 0:00:53]} hxg6 {[%emt 0:02:13]} 8. Qb3 {[%emt 0:00:20] 8.Rb1 is the modern continuation. D12: Slav Defence: 3 Nf3 Nf6 4 e3 Bf5.} Qc7 {[%emt 0:00:18]} 9. g3 {[%emt 0:00:40]} Nbd7 {[%emt 0:05:39]} 10. Bg2 {[%emt 0:01:13]} Be7 {[%emt 0:01:45]} 11. O-O {[%emt 0:06:09]} O-O {[%emt 0:05:39]} 12. a3 {[%emt 0:10:28]} Rfd8 {[%emt 0:02:43] [#]} 13. Rd1 $146 {[%emt 0:04:54]} ({Predecessor:} 13. Qa2 Nb6 14. b3 e5 15. dxe5 Qxe5 16. Bb2 Qh5 17. cxd5 Nbxd5 18. Nxd5 Nxd5 19. Rac1 {½-½ Panitevsky,I (2537)-Johnson,B (2528) ICCF GMN/A/03 email 2019}) 13... Rac8 {[%emt 0:05:13]} 14. e4 {[%emt 0:09:24]} dxe4 {[%emt 0:21:24] The position is equal.} 15. Nxe4 {[%emt 0:02:25]} Nxe4 {[%emt 0:00:21]} 16. Bxe4 {[%emt 0:00:06]} e5 {[%emt 0:00:03]} 17. Be3 {[%emt 0:09:11]} exd4 {[%emt 0:05:43]} 18. Bxd4 {[%emt 0:08:40]} Bc5 {[%emt 0:02:48]} 19. Qe3 {[%emt 0:06:13]} Bxd4 {[%emt 0:00:34]} 20. Rxd4 {[%emt 0:00:08][%cal Oe4g6]} Re8 {[%emt 0:00:49]} 21. Qd2 $1 {[%emt 0:01:51]} Nc5 {[%emt 0:07:25]} 22. Bc2 {[%emt 0:00:16] Prevents Nb3.} Qe5 {[%emt 0:01:09]} 23. Rd1 {[%emt 0:07:01]} Ne6 {[%emt 0:03:44]} 24. Rd7 {[%emt 0:03:47]} Rcd8 {[%emt 0:00:40]} 25. Qe3 {[%emt 0:08:13]} Qxb2 {[%emt 0:13:33]} 26. Rxd8 {[%emt 0:05:47]} Rxd8 {[%emt 0:00:03]} 27. Rxd8+ {[%emt 0:00:08]} Nxd8 $11 {[%emt 0:00:02][%mdl 4096] Endgame KQB-KQN} 28. Qe8+ {[%emt 0:01:40]} Kh7 {[%emt 0:00:16] [#] aiming for ...Qc1+.} 29. Qxd8 {[%emt 0:02:01]} Qxc2 {[%emt 0:01:18]} 30. Qh4+ {[%emt 0:00:15]} Kg8 {[%emt 0:00:16] Threatens to win with ...Qc1+.} 31. Qd8+ {[%emt 0:00:07]} Kh7 {[%emt 0:00:03] ...Qc1+ would be deadly.} 32. Qh4+ {[%emt 0:00:09]} Kg8 {[%emt 0:00:04]} 33. Qd8+ {[%emt 0:00:08]} Kh7 {[%emt 0:00:03] [#] ...Qc1+ is the strong threat.} 34. Qh4+ {[%emt 0:00:00] A balanced but interesting game.   Weighted Error Value: White=0.04 (flawless) /Black=0.02 (flawless)} 1/2-1/2

[Event "ETCC Open 2023"]
[Site "Budva"]
[Date "2023.11.11"]
[Round "1.4"]
[White "Abasov, Nijat"]
[Black "Ochsner, Bjorn Moller"]
[Result "1/2-1/2"]
[ECO "D35"]
[WhiteElo "2679"]
[BlackElo "2534"]
[Annotator "TA"]
[PlyCount "35"]
[EventDate "2023.11.10"]
[EventType "team-tourn"]
[EventCountry "MNE"]
[SourceTitle "playchess.com"]
[Source "ChessBase"]
[SourceQuality "1"]
[WhiteTeam "Azerbaijan"]
[BlackTeam "Denmark"]
[WhiteTeamCountry "AZE"]
[BlackTeamCountry "DEN"]
[TimeControl "40/5400+30:1800+30"]

{[%evp 12,35,27,26,18,-16,-21,-34,-24,-57,-47,-39,-39,-41,-36,-36,-40,-30,-33,-48,0,-56,0,-45,0,-50]} 1. d4 {[%emt 0:00:05]} Nf6 {[%emt 0:00:17]} 2. Nf3 {[%emt 0:00:17]} d5 {[%emt 0:00:19]} 3. c4 {[%emt 0:00:10]} e6 {[%emt 0:00:07]} 4. Nc3 {[%emt 0:00:07]} Nbd7 {[%emt 0:00:35]} 5. cxd5 {[%emt 0:02:11]} exd5 {[%emt 0:00:18]} 6. Bf4 {[%emt 0:00:20]} Bb4 {[%emt 0:00:32]} 7. e3 {[%emt 0:11:08]} Ne4 {[%emt 0:00:46] 7...c5 is not played anymore. D35: Queen's Gambit Declined: Exchange Variation.} 8. Rc1 {[%emt 0:00:09]} (8. Qc2 $5 {[%cal Rf1d3]}) 8... g5 {[%emt 0:44:38]} 9. Bg3 {[%emt 0:00:20]} h5 {[%emt 0:11:41] [#] ...h4 is the strong threat. Black is slightly better.} 10. h4 {[%emt 0:01:33]} Nxg3 {[%emt 0:07:19]} 11. fxg3 {[%emt 0:01:09] [#]} g4 $146 {[%emt 0:00:46]} ({Predecessor:} 11... gxh4 12. gxh4 Qe7 13. Qd3 c6 14. Be2 Nf6 15. a3 Bd6 16. Ng5 Bg4 {1-0 Charochkina,D (2366)-Ambartsumova,K (2280) RUS-ch blitz (Women) 2016 (8.3)}) 12. Ng1 {[%emt 0:02:06]} Qe7 {[%emt 0:03:37]} 13. Qd2 {[%emt 0:08:32]} Qd6 {[%emt 0:03:35]} 14. Kf2 {[%emt 0:18:02]} Qf6+ {[%emt 0:00:39]} 15. Ke1 {[%emt 0:00:07]} Qd6 {[%emt 0:00:05]} 16. Kf2 $1 {[%emt 0:00:07]} Qf6+ {[%emt 0:00:06]} 17. Ke1 {[%emt 0:00:07]} Qd6 {[%emt 0:01:07]} 18. Kf2 $1 {[%emt 0:53:00] Weighted Error Value: White=0.07 (flawless) /Black=0.17 (very precise)} 1/2-1/2

[Event "ETCC Open 2023"]
[Site "Budva"]
[Date "2023.11.11"]
[Round "1.5"]
[White "Kadric, Denis"]
[Black "Martirosyan, Haik M."]
[Result "1/2-1/2"]
[ECO "C50"]
[WhiteElo "2584"]
[BlackElo "2708"]
[Annotator "TA"]
[PlyCount "61"]
[EventDate "2023.11.10"]
[EventType "team-tourn"]
[EventCountry "MNE"]
[SourceTitle "playchess.com"]
[Source "ChessBase"]
[SourceQuality "1"]
[WhiteTeam "Montenegro"]
[BlackTeam "Armenia"]
[WhiteTeamCountry "MNE"]
[BlackTeamCountry "ARM"]
[TimeControl "40/5400+30:1800+30"]

{[%evp 9,61,10,25,18,10,12,11,14,19,13,24,0,137,151,178,152,143,160,147,149,160,161,141,88,78,72,74,69,147,139,149,134,148,132,135,0,0,0,0,0,0,0,0,0,0,0,0,0,0,0,0,0,0,0]} 1. e4 {[%emt 0:00:03]} e5 {[%emt 0:00:12]} 2. Nf3 {[%emt 0:00:05]} Nc6 {[%emt 0:00:09]} 3. Bc4 {[%emt 0:00:05]} Bc5 {[%emt 0:00:07]} 4. O-O {[%emt 0:00:04]} Nf6 {[%emt 0:00:29]} 5. d3 {[%emt 0:00:02]} O-O {[%emt 0:00:28]} 6. Re1 {[%emt 0:01:36] C50: Hungarian Defence and Giuoco Pianissimo.} Ng4 {[%emt 0:02:34]} 7. Re2 {[%emt 0:00:06]} Kh8 {[%emt 0:00:21]} 8. h3 {[%emt 0:01:08]} f5 {[%emt 0:00:06] ...fxe4 would be deadly.} 9. Bg5 {[%emt 0:01:01]} (9. hxg4 fxg4 10. Ng5 Qf6 $17) 9... Nf6 {[%emt 0:01:13]} 10. exf5 {[%emt 0:01:42][%cal Ob1c3] [#]} (10. Nc3 $5 {[%cal Re4f5]}) 10... Nd4 $146 {[%emt 0:04:38]} (10... d5 $11 {keeps the balance.} 11. Bb3 e4 12. dxe4 dxe4 13. Qxd8 Rxd8) ({Predecessor:} 10... d6 11. c3 Bb6 12. d4 exd4 13. cxd4 Bxf5 14. Nc3 h6 15. Be3 Ne7 16. d5 Bxe3 17. Rxe3 {1-0 Vachier Lagrave,M (2763)-Nakamura,H (2736) Meltwater Tour Final rapid 2021 (7.5)}) 11. Nxd4 $16 {[%emt 0:06:46]} (11. Rxe5 Nxf3+ 12. Qxf3 Bd4 $11) 11... exd4 {[%emt 0:00:09] Black is weak on the light squares} 12. Bd5 $36 {[%emt 0:05:36][%mdl 2048] White has strong initiative.} c6 {[%emt 0:05:12]} 13. Bf3 {[%emt 0:00:06] White is more active.} d5 {[%emt 0:01:15]} 14. g4 {[%emt 0:00:04]} g6 {[%emt 0:25:08]} 15. fxg6 {[%emt 0:03:16]} Rg8 {[%emt 0:07:42]} 16. Bxf6+ {[%emt 0:03:00]} (16. Qe1 $142) 16... Qxf6 {[%emt 0:00:02]} 17. gxh7 {[%emt 0:00:08]} Kxh7 {[%emt 0:01:09]} 18. Nd2 {[%emt 0:00:13]} Bd6 {[%emt 0:03:03]} (18... Qh4 $1 $14 19. Bg2 Bxg4 20. hxg4 Rxg4) 19. Bg2 {[%emt 0:00:50]} Bd7 {[%emt 0:02:09]} 20. Nf1 {[%emt 0:01:09]} (20. Nf3 Bxg4 21. hxg4 Rxg4 $11) 20... Raf8 {[%emt 0:02:39]} 21. Ng3 {[%emt 0:04:24]} Qh4 {[%emt 0:02:40][%cal Od7g4] [#]} 22. Qd2 {[%emt 0:04:03]} (22. Qe1 $1 $16) 22... Bxg4 $1 $11 {[%emt 0:07:19] The position is equal.} 23. hxg4 {[%emt 0:00:17]} Rxg4 {[%emt 0:00:01]} 24. Rae1 {[%emt 0:38:27] And now Re8 would win.} Rxg3 $1 {[%emt 0:01:29]} 25. fxg3 {[%emt 0:00:03]} Bxg3 {[%emt 0:00:31][%csl Gg3][%cal Rh4h2] [#]} 26. Bxd5 {[%emt 0:12:56]} cxd5 {[%emt 0:03:48]} (26... Bxe1 $2 27. Be4+ (27. Qxe1 Qxe1+ 28. Rxe1 cxd5 $16) 27... Kh8 28. Rxe1 $18) 27. Rh2 $1 {[%emt 0:00:04]} Bxh2+ {[%emt 0:01:36]} 28. Qxh2 {[%emt 0:00:02]} Qxh2+ {[%emt 0:00:33]} 29. Kxh2 {[%emt 0:00:02]} Rf2+ {[%emt 0:00:42]} 30. Kg3 {[%emt 0:00:02]} Rxc2 {[%emt 0:00:07]} 31. Re7+ {[%emt 0:00:03] White really could win this.   Weighted Error Value: White=0.12 (very precise) /Black=0.12 (very precise)} 1/2-1/2

[Event "ETCC Open 2023"]
[Site "Budva"]
[Date "2023.11.11"]
[Round "1.6"]
[White "Sargissian, Gabriel"]
[Black "Djukic, Nikola"]
[Result "1-0"]
[ECO "A34"]
[WhiteElo "2686"]
[BlackElo "2518"]
[Annotator "TA"]
[PlyCount "61"]
[EventDate "2023.11.10"]
[EventType "team-tourn"]
[EventCountry "MNE"]
[SourceTitle "playchess.com"]
[Source "ChessBase"]
[SourceQuality "1"]
[WhiteTeam "Armenia"]
[BlackTeam "Montenegro"]
[WhiteTeamCountry "ARM"]
[BlackTeamCountry "MNE"]
[TimeControl "40/5400+30:1800+30"]

{[%evp 9,61,9,15,0,0,0,0,0,-6,0,18,10,16,10,17,18,16,0,17,7,55,40,43,45,47,55,171,172,142,137,202,197,200,204,197,188,391,392,387,391,375,366,490,495,433,494,543,503,505,424,510,495,443,421]} 1. Nf3 {[%emt 0:00:09]} c5 {[%emt 0:00:16]} 2. c4 {[%emt 0:00:16]} Nc6 {[%emt 0:00:09]} 3. Nc3 {[%emt 0:00:26]} e5 {[%emt 0:00:15]} 4. e3 {[%emt 0:01:03]} Nf6 {[%emt 0:00:09]} 5. d4 {[%emt 0:01:22]} e4 {[%emt 0:00:10]} 6. d5 {[%emt 0:01:34] Strongly threatening Ng5. A34: Symmetrical English: 2 Nc3, lines with ...d5.} exf3 {[%emt 0:01:57]} 7. dxc6 {[%emt 0:00:52]} dxc6 {[%emt 0:02:04] White should prevent ...Qxd1+. The main line 7...dxc6 scores better than 7...bxc6.} 8. Qxd8+ {[%emt 0:02:02] The position is equal.} Kxd8 {[%emt 0:00:09]} 9. gxf3 {[%emt 0:00:10]} g6 {[%emt 0:01:35]} 10. b3 {[%emt 0:09:49]} Bg7 {[%emt 0:01:00][%cal Of6e4]} 11. Bb2 {[%emt 0:00:09]} b6 {[%emt 0:01:25]} 12. O-O-O+ {[%emt 0:07:34]} (12. Ne4 {looks sharper.} Ke7 13. O-O-O Be6 14. Rg1) 12... Kc7 {[%emt 0:02:40] [#]} 13. h4 $146 {[%emt 0:08:28]} ({Predecessor:} 13. Bg2 Be6 14. f4 Rad8 15. Ne2 Nh5 16. Be5+ Bxe5 17. fxe5 Bg4 18. f3 Bf5 19. Ng3 Nxg3 20. hxg3 {1-0 Dzagnidze,N (2524)-Saduakassova,D (2500) Gibraltar FIDE GP (Women) 2021 (3)}) 13... Bf5 {[%emt 0:13:39]} 14. Ne2 {[%emt 0:05:23][%cal Bc3e2,Be2g3,Bg3e4,Be4d6][%mdl 32]} h5 {[%emt 0:17:31]} (14... Nh5 $11) 15. Ng3 {[%emt 0:06:44]} Be6 {[%emt 0:00:10]} 16. Be5+ {[%emt 0:01:40]} Kb7 {[%emt 0:03:19]} 17. f4 {[%emt 0:00:38][%cal Of4f5]} Ne8 {[%emt 0:03:05] [#]} (17... Rhg8 $14) 18. Bh3 $1 $18 {[%emt 0:05:14]} Bxh3 {[%emt 0:29:30]} 19. Rxh3 {[%emt 0:00:17] Black must now prevent Rd7+.} Kc8 {[%emt 0:00:15] Repels Rd7} (19... Rf8 $16 {is a better defense.}) 20. Ne4 {[%emt 0:04:18]} Rg8 {[%emt 0:01:29]} 21. Nd6+ {[%emt 0:06:53]} Nxd6 {[%emt 0:04:59]} 22. Rxd6 {[%emt 0:00:07]} Kb7 $2 {[%emt 0:00:16]} (22... Bxe5 23. fxe5 Kc7) 23. Rd7+ {[%emt 0:01:07]} Ka6 {[%emt 0:00:49] Black is weak on the dark squares} 24. Rxf7 {[%emt 0:00:44]} Bxe5 {[%emt 0:00:04]} 25. fxe5 {[%emt 0:00:09][%cal Bf4e5,Be5e6,Be6e7][%mdl 4128] Endgame KRR-KRR} g5 {[%emt 0:00:04]} 26. hxg5 {[%emt 0:05:00] White is clearly winning.} Rxg5 {[%emt 0:00:08]} 27. e6 {[%emt 0:00:15]} Re5 {[%emt 0:07:25]} 28. e7 {[%emt 0:00:18] [#] Hoping for f4.} Re8 {[%emt 0:00:04]} 29. Kd2 {[%emt 0:00:27]} Ka5 {[%emt 0:00:05]} 30. a3 {[%emt 0:03:19]} b5 {[%emt 0:09:25]} 31. f4 {[%emt 0:00:38] Weighted Error Value: White=0.05 (flawless) /Black=0.35} 1-0

[Event "ETCC Open 2023"]
[Site "Budva"]
[Date "2023.11.11"]
[Round "1.7"]
[White "Petrov, Nikita"]
[Black "Sargsyan, Shant"]
[Result "1/2-1/2"]
[ECO "D35"]
[WhiteElo "2567"]
[BlackElo "2625"]
[Annotator "TA"]
[PlyCount "39"]
[EventDate "2023.11.10"]
[EventType "team-tourn"]
[EventCountry "MNE"]
[SourceTitle "playchess.com"]
[Source "ChessBase"]
[SourceQuality "1"]
[WhiteTeam "Montenegro"]
[BlackTeam "Armenia"]
[WhiteTeamCountry "MNE"]
[BlackTeamCountry "ARM"]
[TimeControl "40/5400+30:1800+30"]

{[%evp 15,39,19,16,8,17,13,8,12,19,15,17,18,18,16,12,9,11,11,14,13,13,0,14,0,21,0]} 1. d4 {[%emt 0:00:03]} Nf6 {[%emt 0:01:30]} 2. c4 {[%emt 0:00:14]} e6 {[%emt 0:00:05]} 3. Nc3 {[%emt 0:00:57]} d5 {[%emt 0:00:13]} 4. cxd5 {[%emt 0:00:48]} exd5 {[%emt 0:00:09]} 5. Bg5 {[%emt 0:00:32][%cal Bc1g5,Bg5h4,Bh4g3][%mdl 32]} c6 {[%emt 0:00:22]} 6. e3 {[%emt 0:00:50]} h6 {[%emt 0:00:12]} 7. Bh4 {[%emt 0:00:58]} Be7 {[%emt 0:00:08]} 8. Bd3 {[%emt 0:01:25]} O-O {[%emt 0:00:11] The position is equal.} 9. Bg3 {[%emt 0:01:06] D35: Queen's Gambit Declined: Exchange Variation.} Re8 {[%emt 0:00:41]} (9... Bg4 {feels hotter.} 10. Nge2 Nh5 11. Be5 Nd7) 10. Nf3 {[%emt 0:03:11]} Bg4 {[%emt 0:00:40]} 11. h3 {[%emt 0:08:28]} Bxf3 {[%emt 0:00:34]} 12. Qxf3 {[%emt 0:01:06]} Bd6 {[%emt 0:00:24]} 13. Bh4 {[%emt 0:05:16]} Nbd7 {[%emt 0:00:07]} 14. O-O {[%emt 0:02:40]} Be7 {[%emt 0:00:08]} 15. Bg3 {[%emt 0:06:11]} Nf8 {[%emt 0:00:07]} 16. Be5 {[%emt 0:10:46]} N6d7 {[%emt 0:04:19]} 17. Bh2 {[%emt 0:04:17]} Nf6 {[%emt 0:01:02]} 18. Be5 {[%emt 0:00:21]} N6d7 {[%emt 0:01:07]} 19. Bh2 {[%emt 0:00:10]} Nf6 {[%emt 0:01:06] [#]} 20. Be5 $146 {[%emt 0:03:07] A rather calm draw.   Weighted Error Value: White=0.03 (flawless) /Black=0.02 (flawless)} ({Predecessor:} 20. Rab1 a5 21. Be5 N6d7 22. Bh2 Nf6 23. Be5 N6d7 {½-½ Gilevich,A (2411)-Favaloro,A (2403) ITA-chT GpB 54th 2023 (3)}) 1/2-1/2